[Event "Titled Tuesday Blitz June 13 Early 2023"]
[White "Carlsen, Magnus"]
[Black "Caruana, Fabiano"]
[WhiteFideId "1503014"]
[BlackFideId "2020009"]
[WhiteElo "2858"]
[BlackElo "2832"]
[Result "1/2-1/2"]
[Round "8"]
[TimeControl "180+2"]
[Date "2023.06.13"]
[WhiteClock "0:00:07"]
[BlackClock "0:00:08"]
[Board "1"]

1. e4 {[%clk 0:03:00]}  e5 {[%clk 0:03:00]} 2. Nf3 {[%clk 0:03:00]}  Nc6 {[%clk 0:03:00]} 3. Bb5 {[%clk 0:02:52]}  a6 {[%clk 0:03:00]} 4. Ba4 {[%clk 0:02:51]}  Nf6 {[%clk 0:03:01]} 5. O-O {[%clk 0:02:51]}  b5 {[%clk 0:03:01]} 6. Bb3 {[%clk 0:02:51]}  Bc5 {[%clk 0:03:02]} 7. c3 {[%clk 0:02:48]}  d6 {[%clk 0:03:02]} 8. a4 {[%clk 0:02:48]}  Rb8 {[%clk 0:03:02]} 9. d4 {[%clk 0:02:32]}  Bb6 {[%clk 0:03:02]} 10. axb5 {[%clk 0:02:33]}  axb5 {[%clk 0:03:01]} 11. h3 {[%clk 0:02:34]}  Bb7 {[%clk 0:02:54]} 12. Re1 {[%clk 0:02:20]}  O-O {[%clk 0:02:54]} 13. Be3 {[%clk 0:02:19]}  exd4 {[%clk 0:02:37]} 14. cxd4 {[%clk 0:02:18]}  Nb4 {[%clk 0:02:36]} 15. d5 {[%clk 0:02:14]}  Bxe3 {[%clk 0:02:35]} 16. Rxe3 {[%clk 0:02:14]}  c5 {[%clk 0:02:32]} 17. dxc6 {[%clk 0:02:14]}  Nxc6 {[%clk 0:02:28]} 18. Nc3 {[%clk 0:02:15]}  Ne5 {[%clk 0:02:25]} 19. Nd4 {[%clk 0:01:30]}  b4 {[%clk 0:01:54]} 20. Nd5 {[%clk 0:01:27]}  Nxd5 {[%clk 0:01:54]} 21. exd5 {[%clk 0:01:26]}  Qf6 {[%clk 0:01:51]} 22. Ra7 {[%clk 0:01:24]}  Ba8 {[%clk 0:01:33]} 23. Qd2 {[%clk 0:00:59]}  Rbc8 {[%clk 0:01:32]} 24. Ra6 {[%clk 0:00:49]}  Rc5 {[%clk 0:01:28]} 25. Nc6 {[%clk 0:00:43]}  Nxc6 {[%clk 0:01:17]} 26. dxc6 {[%clk 0:00:29]}  Bxc6 {[%clk 0:01:16]} 27. Rd3 {[%clk 0:00:25]}  Qg6 {[%clk 0:01:02]} 28. Rg3 {[%clk 0:00:25]}  Qf6 {[%clk 0:00:52]} 29. Kh2 {[%clk 0:00:20]}  h5 {[%clk 0:00:46]} 30. Rb6 {[%clk 0:00:19]}  Qe5 {[%clk 0:00:37]} 31. Rxb4 {[%clk 0:00:11]}  Rb5 {[%clk 0:00:23]} 32. Rxb5 {[%clk 0:00:09]}  Bxb5 {[%clk 0:00:23]} 33. h4 {[%clk 0:00:08]}  Bd7 {[%clk 0:00:20]} 34. Kg1 {[%clk 0:00:07]}  Bg4 {[%clk 0:00:19]} 35. Re3 {[%clk 0:00:07]}  Qf6 {[%clk 0:00:20]} 36. g3 {[%clk 0:00:06]}  Rb8 {[%clk 0:00:19]} 37. Qc3 {[%clk 0:00:06]}  Qxc3 {[%clk 0:00:19]} 38. Rxc3 {[%clk 0:00:07]}  d5 {[%clk 0:00:16]} 39. Bxd5 {[%clk 0:00:06]}  Rxb2 {[%clk 0:00:14]} 40. Rc7 {[%clk 0:00:06]}  Be6 {[%clk 0:00:14]} 41. Bxe6 {[%clk 0:00:07]}  fxe6 {[%clk 0:00:15]} 42. Rc5 {[%clk 0:00:06]}  g6 {[%clk 0:00:16]} 43. Rc7 {[%clk 0:00:07]}  e5 {[%clk 0:00:15]} 44. Kg2 {[%clk 0:00:06]}  e4 {[%clk 0:00:15]} 45. Re7 {[%clk 0:00:05]}  Rb4 {[%clk 0:00:14]} 46. Kf1 {[%clk 0:00:06]}  Ra4 {[%clk 0:00:14]} 47. Ke2 {[%clk 0:00:05]}  Ra3 {[%clk 0:00:15]} 48. Rxe4 {[%clk 0:00:05]}  Kg7 {[%clk 0:00:15]} 49. Re3 {[%clk 0:00:06]}  Ra4 {[%clk 0:00:16]} 50. Kf3 {[%clk 0:00:07]}  Ra2 {[%clk 0:00:16]} 51. Re7+ {[%clk 0:00:07]}  Kf6 {[%clk 0:00:16]} 52. Re2 {[%clk 0:00:08]}  Ra3+ {[%clk 0:00:16]} 53. Kf4 {[%clk 0:00:08]}  Ra4+ {[%clk 0:00:16]} 54. Re4 {[%clk 0:00:09]}  Ra2 {[%clk 0:00:17]} 55. f3 {[%clk 0:00:09]}  Rh2 {[%clk 0:00:16]} 56. Rb4 {[%clk 0:00:09]}  Rg2 {[%clk 0:00:16]} 57. Rb6+ {[%clk 0:00:09]}  Kg7 {[%clk 0:00:16]} 58. g4 {[%clk 0:00:07]}  hxg4 {[%clk 0:00:17]} 59. fxg4 {[%clk 0:00:08]}  Ra2 {[%clk 0:00:17]} 60. Rb7+ {[%clk 0:00:08]}  Kf6 {[%clk 0:00:15]} 61. Rb6+ {[%clk 0:00:05]}  Kg7 {[%clk 0:00:14]} 62. Re6 {[%clk 0:00:06]}  Ra4+ {[%clk 0:00:13]} 63. Re4 {[%clk 0:00:05]}  Ra7 {[%clk 0:00:12]} 64. Re5 {[%clk 0:00:05]}  Kf6 {[%clk 0:00:12]} 65. Rd5 {[%clk 0:00:04]}  Ra4+ {[%clk 0:00:12]} 66. Kf3 {[%clk 0:00:04]}  Ra3+ {[%clk 0:00:13]} 67. Ke4 {[%clk 0:00:05]}  Ra4+ {[%clk 0:00:12]} 68. Rd4 {[%clk 0:00:05]}  Ra7 {[%clk 0:00:12]} 69. Rd6+ {[%clk 0:00:05]}  Kg7 {[%clk 0:00:12]} 70. Ke5 {[%clk 0:00:06]}  Ra5+ {[%clk 0:00:11]} 71. Ke6 {[%clk 0:00:05]}  Ra4 {[%clk 0:00:09]} 72. Rd7+ {[%clk 0:00:06]}  Kg8 {[%clk 0:00:09]} 73. g5 {[%clk 0:00:05]}  Rxh4 {[%clk 0:00:06]} 74. Kf6 {[%clk 0:00:05]}  Ra4 {[%clk 0:00:07]} 75. Rd8+ {[%clk 0:00:05]}  Kh7 {[%clk 0:00:07]} 76. Rd7+ {[%clk 0:00:06]}  Kg8 {[%clk 0:00:07]} 77. Rd6 {[%clk 0:00:07]}  Kh7 {[%clk 0:00:07]} 78. Rd7+ {[%clk 0:00:07]}  Kg8 {[%clk 0:00:08]} 1/2-1/2


[Site "https://www.chess.com"]

[Event "Titled Tuesday Blitz June 13 Early 2023"]
[White "Nakamura, Hikaru"]
[Black "Madaminov, Mukhiddin"]
[WhiteFideId "2016192"]
[BlackFideId "14210703"]
[WhiteElo "2874"]
[BlackElo "2511"]
[Result "1-0"]
[Round "8"]
[TimeControl "180+2"]
[Date "2023.06.13"]
[WhiteClock "0:00:24"]
[BlackClock "0:00:00"]
[Board "2"]

1. Nf3 {[%clk 0:03:00]}  Nf6 {[%clk 0:03:00]} 2. b3 {[%clk 0:02:59]}  g6 {[%clk 0:02:58]} 3. Bb2 {[%clk 0:02:59]}  Bg7 {[%clk 0:02:59]} 4. d4 {[%clk 0:02:59]}  O-O {[%clk 0:02:53]} 5. e3 {[%clk 0:02:59]}  b6 {[%clk 0:02:46]} 6. c4 {[%clk 0:02:59]}  Bb7 {[%clk 0:02:46]} 7. Be2 {[%clk 0:03:00]}  d6 {[%clk 0:02:40]} 8. Qc2 {[%clk 0:02:59]}  Nbd7 {[%clk 0:02:35]} 9. Nc3 {[%clk 0:02:58]}  a6 {[%clk 0:02:01]} 10. O-O {[%clk 0:02:57]}  c5 {[%clk 0:02:01]} 11. Rad1 {[%clk 0:02:50]}  cxd4 {[%clk 0:01:58]} 12. Nxd4 {[%clk 0:02:50]}  Qc7 {[%clk 0:01:57]} 13. Qb1 {[%clk 0:02:49]}  Rfc8 {[%clk 0:01:55]} 14. Qa1 {[%clk 0:02:47]}  Nc5 {[%clk 0:01:52]} 15. Bf3 {[%clk 0:02:44]}  Bxf3 {[%clk 0:01:50]} 16. Nxf3 {[%clk 0:02:44]}  Qb7 {[%clk 0:01:49]} 17. Nd5 {[%clk 0:02:44]}  Ne8 {[%clk 0:01:38]} 18. Bxg7 {[%clk 0:02:34]}  Nxg7 {[%clk 0:01:38]} 19. e4 {[%clk 0:02:35]}  b5 {[%clk 0:01:33]} 20. e5 {[%clk 0:02:35]}  dxe5 {[%clk 0:01:21]} 21. Qxe5 {[%clk 0:02:31]}  Nce6 {[%clk 0:01:21]} 22. Qe4 {[%clk 0:02:20]}  Rab8 {[%clk 0:01:17]} 23. Ne5 {[%clk 0:02:20]}  bxc4 {[%clk 0:01:16]} 24. Nxc4 {[%clk 0:02:16]}  Nf5 {[%clk 0:01:16]} 25. Na5 {[%clk 0:01:57]}  Qb5 {[%clk 0:01:10]} 26. g4 {[%clk 0:01:56]}  Ng5 {[%clk 0:01:10]} 27. Qd3 {[%clk 0:01:47]}  e6 {[%clk 0:00:52]} 28. Nf6+ {[%clk 0:01:31]}  Kg7 {[%clk 0:00:52]} 29. Nd7 {[%clk 0:01:28]}  Qxd3 {[%clk 0:00:27]} 30. Rxd3 {[%clk 0:01:28]}  Rb5 {[%clk 0:00:27]} 31. Nc4 {[%clk 0:01:26]}  Nh4 {[%clk 0:00:20]} 32. f4 {[%clk 0:01:05]}  Ne4 {[%clk 0:00:20]} 33. Nde5 {[%clk 0:01:06]}  Rd5 {[%clk 0:00:20]} 34. Rfd1 {[%clk 0:01:03]}  Rcd8 {[%clk 0:00:17]} 35. Rxd5 {[%clk 0:00:59]}  Rxd5 {[%clk 0:00:17]} 36. Rxd5 {[%clk 0:00:53]}  exd5 {[%clk 0:00:18]} 37. Ne3 {[%clk 0:00:53]}  f6 {[%clk 0:00:19]} 38. Nd3 {[%clk 0:00:52]}  Nc3 {[%clk 0:00:18]} 39. Kf2 {[%clk 0:00:50]}  Ne4+ {[%clk 0:00:13]} 40. Ke2 {[%clk 0:00:48]}  Nc3+ {[%clk 0:00:13]} 41. Kd2 {[%clk 0:00:39]}  d4 {[%clk 0:00:13]} 42. Ne1 {[%clk 0:00:31]}  Nxa2 {[%clk 0:00:09]} 43. N3c2 {[%clk 0:00:31]}  g5 {[%clk 0:00:03]} 44. f5 {[%clk 0:00:31]}  h5 {[%clk 0:00:03]} 45. h3 {[%clk 0:00:31]}  hxg4 {[%clk 0:00:04]} 46. hxg4 {[%clk 0:00:32]}  Nc3 {[%clk 0:00:03]} 47. Nxd4 {[%clk 0:00:32]}  Ne4+ {[%clk 0:00:02]} 48. Ke3 {[%clk 0:00:32]}  Nd6 {[%clk 0:00:01]} 49. Kf2 {[%clk 0:00:28]}  Ne4+ {[%clk 0:00:01]} 50. Ke2 {[%clk 0:00:28]}  Nd6 {[%clk 0:00:02]} 51. Ke3 {[%clk 0:00:28]}  Kf7 {[%clk 0:00:02]} 52. b4 {[%clk 0:00:26]}  Nc4+ {[%clk 0:00:02]} 53. Kf2 {[%clk 0:00:26]}  Ne5 {[%clk 0:00:03]} 54. Kg3 {[%clk 0:00:26]}  Nc4 {[%clk 0:00:03]} 55. Nd3 {[%clk 0:00:24]}  Nd2 {[%clk 0:00:04]} 56. Nc5 {[%clk 0:00:25]}  Ke7 {[%clk 0:00:02]} 57. Nxa6 {[%clk 0:00:24]}  Ne4+ {[%clk 0:00:00]} 58. Kh2 {[%clk 0:00:24]} 1-0


[Site "https://www.chess.com"]

[Event "Titled Tuesday Blitz June 13 Early 2023"]
[White "Lintchevski, Daniil"]
[Black "Paravyan, David"]
[WhiteFideId "4171055"]
[BlackFideId "4194985"]
[WhiteElo "2559"]
[BlackElo "2563"]
[Result "1/2-1/2"]
[Round "8"]
[TimeControl "180+2"]
[Date "2023.06.13"]
[WhiteClock "0:00:23"]
[BlackClock "0:00:34"]
[Board "3"]

1. e4 {[%clk 0:03:00]}  e5 {[%clk 0:03:00]} 2. Nf3 {[%clk 0:03:00]}  Nf6 {[%clk 0:03:01]} 3. Nc3 {[%clk 0:03:01]}  Nc6 {[%clk 0:03:01]} 4. d4 {[%clk 0:03:01]}  exd4 {[%clk 0:03:02]} 5. Nxd4 {[%clk 0:03:02]}  Bb4 {[%clk 0:03:03]} 6. Nxc6 {[%clk 0:03:02]}  bxc6 {[%clk 0:03:03]} 7. Bd3 {[%clk 0:03:03]}  O-O {[%clk 0:03:04]} 8. O-O {[%clk 0:03:03]}  d5 {[%clk 0:03:04]} 9. exd5 {[%clk 0:03:03]}  Bg4 {[%clk 0:03:03]} 10. f3 {[%clk 0:02:55]}  Bh5 {[%clk 0:03:02]} 11. dxc6 {[%clk 0:02:55]}  Qd4+ {[%clk 0:03:02]} 12. Kh1 {[%clk 0:02:55]}  Bxc3 {[%clk 0:03:02]} 13. bxc3 {[%clk 0:02:56]}  Qxc3 {[%clk 0:03:03]} 14. Rb1 {[%clk 0:02:50]}  Bg6 {[%clk 0:03:00]} 15. Rb3 {[%clk 0:02:49]}  Qxc6 {[%clk 0:02:58]} 16. Bb2 {[%clk 0:02:50]}  Bxd3 {[%clk 0:02:55]} 17. Rxd3 {[%clk 0:02:33]}  Rab8 {[%clk 0:02:54]} 18. Bd4 {[%clk 0:02:18]}  Rfe8 {[%clk 0:02:55]} 19. Rc3 {[%clk 0:01:59]}  Qb5 {[%clk 0:01:31]} 20. Bxf6 {[%clk 0:01:36]}  gxf6 {[%clk 0:01:32]} 21. Rxc7 {[%clk 0:01:22]}  Rbd8 {[%clk 0:01:28]} 22. Qb1 {[%clk 0:01:15]}  Qxb1 {[%clk 0:00:55]} 23. Rxb1 {[%clk 0:01:16]}  Re2 {[%clk 0:00:55]} 24. a4 {[%clk 0:00:39]}  Rdd2 {[%clk 0:00:52]} 25. Rxa7 {[%clk 0:00:34]}  Rxg2 {[%clk 0:00:46]} 26. Rg1 {[%clk 0:00:32]}  Rxg1+ {[%clk 0:00:45]} 27. Kxg1 {[%clk 0:00:33]}  Rxc2 {[%clk 0:00:46]} 28. Rb7 {[%clk 0:00:21]}  Ra2 {[%clk 0:00:42]} 29. Rb4 {[%clk 0:00:21]}  Kg7 {[%clk 0:00:38]} 30. Rg4+ {[%clk 0:00:21]}  Kh6 {[%clk 0:00:39]} 31. Rf4 {[%clk 0:00:21]}  Kg5 {[%clk 0:00:37]} 32. Rg4+ {[%clk 0:00:21]}  Kh5 {[%clk 0:00:37]} 33. Rf4 {[%clk 0:00:21]}  Kg6 {[%clk 0:00:35]} 34. Rg4+ {[%clk 0:00:22]}  Kf5 {[%clk 0:00:36]} 35. Rh4 {[%clk 0:00:22]}  Kg6 {[%clk 0:00:34]} 36. Rg4+ {[%clk 0:00:22]}  Kf5 {[%clk 0:00:34]} 37. Rh4 {[%clk 0:00:23]}  Kg6 {[%clk 0:00:34]} 38. Rg4+ {[%clk 0:00:23]} 1/2-1/2


[Site "https://www.chess.com"]

[Event "Titled Tuesday Blitz June 13 Early 2023"]
[White "Sadhwani, Raunak"]
[Black "Keymer, Vincent"]
[WhiteFideId "35093487"]
[BlackFideId "12940690"]
[WhiteElo "2631"]
[BlackElo "2669"]
[Result "0-1"]
[Round "8"]
[TimeControl "180+2"]
[Date "2023.06.13"]
[WhiteClock "0:00:00"]
[BlackClock "0:00:13"]
[Board "5"]

1. e4 {[%clk 0:03:00]}  c6 {[%clk 0:03:00]} 2. d4 {[%clk 0:02:39]}  d5 {[%clk 0:03:00]} 3. e5 {[%clk 0:02:40]}  Bf5 {[%clk 0:03:00]} 4. Nf3 {[%clk 0:02:40]}  e6 {[%clk 0:03:00]} 5. Be2 {[%clk 0:02:41]}  c5 {[%clk 0:03:01]} 6. O-O {[%clk 0:02:38]}  Nc6 {[%clk 0:03:00]} 7. Be3 {[%clk 0:02:39]}  cxd4 {[%clk 0:02:47]} 8. Nxd4 {[%clk 0:02:39]}  Nxd4 {[%clk 0:02:47]} 9. Bxd4 {[%clk 0:02:35]}  Ne7 {[%clk 0:02:48]} 10. c3 {[%clk 0:02:08]}  Nc6 {[%clk 0:02:39]} 11. Qb3 {[%clk 0:02:08]}  Qc7 {[%clk 0:02:33]} 12. Nd2 {[%clk 0:02:05]}  Be7 {[%clk 0:02:17]} 13. f4 {[%clk 0:01:45]}  O-O {[%clk 0:02:07]} 14. Be3 {[%clk 0:01:43]}  Bg6 {[%clk 0:01:55]} 15. Nf3 {[%clk 0:01:38]}  Be4 {[%clk 0:01:47]} 16. Nd2 {[%clk 0:01:34]}  Bg6 {[%clk 0:01:46]} 17. Nf3 {[%clk 0:01:33]}  Na5 {[%clk 0:01:37]} 18. Qd1 {[%clk 0:01:19]}  Nc4 {[%clk 0:01:36]} 19. Bxc4 {[%clk 0:01:18]}  Qxc4 {[%clk 0:01:26]} 20. Bd4 {[%clk 0:01:16]}  b5 {[%clk 0:01:23]} 21. Nd2 {[%clk 0:01:15]}  Qc6 {[%clk 0:01:11]} 22. a3 {[%clk 0:01:08]}  a5 {[%clk 0:01:06]} 23. g4 {[%clk 0:01:01]}  Bd3 {[%clk 0:01:01]} 24. Rf3 {[%clk 0:00:59]}  Be4 {[%clk 0:00:59]} 25. Nxe4 {[%clk 0:00:52]}  dxe4 {[%clk 0:01:00]} 26. Rh3 {[%clk 0:00:53]}  Rfd8 {[%clk 0:00:57]} 27. g5 {[%clk 0:00:42]}  g6 {[%clk 0:00:38]} 28. Qe1 {[%clk 0:00:28]}  b4 {[%clk 0:00:34]} 29. Re3 {[%clk 0:00:16]}  bxc3 {[%clk 0:00:32]} 30. bxc3 {[%clk 0:00:16]}  Rab8 {[%clk 0:00:27]} 31. Rxe4 {[%clk 0:00:16]}  a4 {[%clk 0:00:25]} 32. Re2 {[%clk 0:00:11]}  Rb3 {[%clk 0:00:24]} 33. Qf2 {[%clk 0:00:09]}  Rxa3 {[%clk 0:00:23]} 34. Rf1 {[%clk 0:00:09]}  Rb3 {[%clk 0:00:19]} 35. Qg2 {[%clk 0:00:09]}  Qxg2+ {[%clk 0:00:19]} 36. Kxg2 {[%clk 0:00:09]}  a3 {[%clk 0:00:19]} 37. Rff2 {[%clk 0:00:07]}  Kf8 {[%clk 0:00:19]} 38. Rc2 {[%clk 0:00:06]}  Ke8 {[%clk 0:00:19]} 39. Kf3 {[%clk 0:00:07]}  Kd7 {[%clk 0:00:19]} 40. Ke4 {[%clk 0:00:07]}  Kc6 {[%clk 0:00:19]} 41. Rfd2 {[%clk 0:00:06]}  Ra8 {[%clk 0:00:18]} 42. c4 {[%clk 0:00:06]}  Ra4 {[%clk 0:00:17]} 43. Re2 {[%clk 0:00:04]}  Rbb4 {[%clk 0:00:15]} 44. Kd3 {[%clk 0:00:05]}  Rb3+ {[%clk 0:00:15]} 45. Ke4 {[%clk 0:00:05]}  Bc5 {[%clk 0:00:15]} 46. Bxc5 {[%clk 0:00:02]}  Kxc5 {[%clk 0:00:16]} 47. Red2 {[%clk 0:00:02]}  Rxc4+ {[%clk 0:00:13]} 48. Rxc4+ {[%clk 0:00:03]}  Kxc4 {[%clk 0:00:14]} 49. Rd7 {[%clk 0:00:00]}  a2 {[%clk 0:00:13]} 0-1


[Site "https://www.chess.com"]

[Event "Titled Tuesday Blitz June 13 Early 2023"]
[White "Lazavik, Denis"]
[Black "Babazada, Khazar"]
[WhiteFideId "13515110"]
[BlackFideId "13413554"]
[WhiteElo "2560"]
[BlackElo "2369"]
[Result "1-0"]
[Round "8"]
[TimeControl "180+2"]
[Date "2023.06.13"]
[WhiteClock "0:00:13"]
[BlackClock "0:00:05"]
[Board "6"]

1. d4 {[%clk 0:03:00]}  d5 {[%clk 0:02:57]} 2. c4 {[%clk 0:03:01]}  c6 {[%clk 0:02:58]} 3. Nf3 {[%clk 0:03:01]}  Nf6 {[%clk 0:02:58]} 4. Qc2 {[%clk 0:03:02]}  dxc4 {[%clk 0:02:57]} 5. Qxc4 {[%clk 0:03:02]}  Bf5 {[%clk 0:02:56]} 6. g3 {[%clk 0:03:03]}  e6 {[%clk 0:02:52]} 7. Bg2 {[%clk 0:03:03]}  Nbd7 {[%clk 0:02:50]} 8. O-O {[%clk 0:03:03]}  h6 {[%clk 0:02:48]} 9. Qb3 {[%clk 0:03:02]}  Qb6 {[%clk 0:02:43]} 10. Nbd2 {[%clk 0:03:02]}  Be7 {[%clk 0:02:43]} 11. Nc4 {[%clk 0:03:02]}  Qa6 {[%clk 0:02:43]} 12. Bf4 {[%clk 0:02:51]}  O-O {[%clk 0:02:43]} 13. Bd6 {[%clk 0:02:48]}  Bxd6 {[%clk 0:02:26]} 14. Nxd6 {[%clk 0:02:47]}  Nb6 {[%clk 0:02:27]} 15. Nxf5 {[%clk 0:02:42]}  exf5 {[%clk 0:02:26]} 16. e3 {[%clk 0:02:42]}  Qc4 {[%clk 0:02:23]} 17. Qxc4 {[%clk 0:02:38]}  Nxc4 {[%clk 0:02:23]} 18. b3 {[%clk 0:02:39]}  Nd6 {[%clk 0:02:23]} 19. Ne5 {[%clk 0:02:39]}  Nd5 {[%clk 0:02:16]} 20. Rfc1 {[%clk 0:02:36]}  Rfc8 {[%clk 0:02:05]} 21. Nd3 {[%clk 0:02:31]}  Nf6 {[%clk 0:01:48]} 22. Kf1 {[%clk 0:02:30]}  Kf8 {[%clk 0:01:48]} 23. Ke2 {[%clk 0:02:29]}  Ke7 {[%clk 0:01:47]} 24. a3 {[%clk 0:02:29]}  g5 {[%clk 0:01:43]} 25. Rh1 {[%clk 0:02:23]}  Nde4 {[%clk 0:00:52]} 26. Rac1 {[%clk 0:02:21]}  h5 {[%clk 0:00:37]} 27. h4 {[%clk 0:02:19]}  g4 {[%clk 0:00:37]} 28. Nf4 {[%clk 0:02:19]}  Nd6 {[%clk 0:00:34]} 29. Rc5 {[%clk 0:02:18]}  a5 {[%clk 0:00:31]} 30. a4 {[%clk 0:02:06]}  Kf8 {[%clk 0:00:24]} 31. Rhc1 {[%clk 0:02:00]}  Kg7 {[%clk 0:00:22]} 32. Ke1 {[%clk 0:01:21]}  Ra6 {[%clk 0:00:21]} 33. Bf1 {[%clk 0:01:21]}  Rb6 {[%clk 0:00:21]} 34. Rb1 {[%clk 0:01:16]}  Kh6 {[%clk 0:00:18]} 35. Bd3 {[%clk 0:01:16]}  Nde4 {[%clk 0:00:13]} 36. Bxe4 {[%clk 0:01:16]}  fxe4 {[%clk 0:00:13]} 37. Rxa5 {[%clk 0:01:12]}  Nd5 {[%clk 0:00:11]} 38. Kd2 {[%clk 0:00:31]}  Rd8 {[%clk 0:00:04]} 39. Rc5 {[%clk 0:00:19]}  Nxf4 {[%clk 0:00:02]} 40. gxf4 {[%clk 0:00:20]}  Ra8 {[%clk 0:00:03]} 41. Kc2 {[%clk 0:00:17]}  Kg6 {[%clk 0:00:02]} 42. Rg5+ {[%clk 0:00:17]}  Kh6 {[%clk 0:00:03]} 43. Rd1 {[%clk 0:00:17]}  f6 {[%clk 0:00:03]} 44. Rc5 {[%clk 0:00:16]}  Kg6 {[%clk 0:00:03]} 45. d5 {[%clk 0:00:16]}  cxd5 {[%clk 0:00:03]} 46. Rdxd5 {[%clk 0:00:17]}  Raa6 {[%clk 0:00:02]} 47. Rxh5 {[%clk 0:00:17]}  Rd6 {[%clk 0:00:03]} 48. Rhd5 {[%clk 0:00:16]}  Rdc6 {[%clk 0:00:03]} 49. h5+ {[%clk 0:00:16]}  Kh6 {[%clk 0:00:04]} 50. Kc3 {[%clk 0:00:16]}  Rxc5+ {[%clk 0:00:04]} 51. Rxc5 {[%clk 0:00:17]}  Rd6 {[%clk 0:00:05]} 52. Rf5 {[%clk 0:00:16]}  Rd3+ {[%clk 0:00:06]} 53. Kc4 {[%clk 0:00:16]}  Rd2 {[%clk 0:00:06]} 54. Rxf6+ {[%clk 0:00:17]}  Kxh5 {[%clk 0:00:07]} 55. Rf8 {[%clk 0:00:10]}  Rxf2 {[%clk 0:00:07]} 56. Rh8+ {[%clk 0:00:10]}  Kg6 {[%clk 0:00:07]} 57. Kd4 {[%clk 0:00:10]}  Rb2 {[%clk 0:00:05]} 58. Kxe4 {[%clk 0:00:10]}  Rxb3 {[%clk 0:00:06]} 59. Rg8+ {[%clk 0:00:10]}  Kf6 {[%clk 0:00:05]} 60. Rxg4 {[%clk 0:00:10]}  Rb4+ {[%clk 0:00:06]} 61. Kf3 {[%clk 0:00:10]}  Rxa4 {[%clk 0:00:06]} 62. Rh4 {[%clk 0:00:11]}  b5 {[%clk 0:00:05]} 63. Rh6+ {[%clk 0:00:11]}  Kf7 {[%clk 0:00:05]} 64. Rb6 {[%clk 0:00:11]}  Rb4 {[%clk 0:00:06]} 65. e4 {[%clk 0:00:12]}  Ke7 {[%clk 0:00:03]} 66. e5 {[%clk 0:00:12]}  Rb1 {[%clk 0:00:03]} 67. Ke4 {[%clk 0:00:12]}  b4 {[%clk 0:00:04]} 68. Kf5 {[%clk 0:00:13]}  b3 {[%clk 0:00:04]} 69. Rb7+ {[%clk 0:00:13]}  Kd8 {[%clk 0:00:04]} 70. Ke6 {[%clk 0:00:13]}  b2 {[%clk 0:00:05]} 71. f5 {[%clk 0:00:13]}  Kc8 {[%clk 0:00:05]} 72. Rb3 {[%clk 0:00:13]}  Kc7 {[%clk 0:00:06]} 73. f6 {[%clk 0:00:13]}  Kc6 {[%clk 0:00:05]} 74. f7 {[%clk 0:00:13]} 1-0


[Site "https://www.chess.com"]

[Event "Titled Tuesday Blitz June 13 Early 2023"]
[White "Xu, Yi"]
[Black "Bok, Benjamin"]
[WhiteFideId "8605564"]
[BlackFideId "1017063"]
[WhiteElo "2460"]
[BlackElo "2657"]
[Result "0-1"]
[Round "8"]
[TimeControl "180+2"]
[Date "2023.06.13"]
[WhiteClock "0:00:00"]
[BlackClock "0:00:07"]
[Board "9"]

1. e4 {[%clk 0:03:00]}  c5 {[%clk 0:02:59]} 2. Nf3 {[%clk 0:02:59]}  d6 {[%clk 0:02:59]} 3. Bb5+ {[%clk 0:02:59]}  Nd7 {[%clk 0:02:59]} 4. d4 {[%clk 0:02:59]}  cxd4 {[%clk 0:03:00]} 5. Nxd4 {[%clk 0:02:59]}  Nf6 {[%clk 0:02:59]} 6. O-O {[%clk 0:02:59]}  g6 {[%clk 0:02:57]} 7. Re1 {[%clk 0:02:58]}  Bg7 {[%clk 0:02:57]} 8. Bf1 {[%clk 0:02:58]}  Nc5 {[%clk 0:02:57]} 9. f3 {[%clk 0:02:55]}  Qb6 {[%clk 0:02:52]} 10. Na3 {[%clk 0:01:47]}  O-O {[%clk 0:02:14]} 11. Nc4 {[%clk 0:01:42]}  Qc7 {[%clk 0:02:14]} 12. Be3 {[%clk 0:01:39]}  a6 {[%clk 0:02:12]} 13. a4 {[%clk 0:01:39]}  d5 {[%clk 0:02:05]} 14. exd5 {[%clk 0:01:13]}  Nxd5 {[%clk 0:02:06]} 15. Bf2 {[%clk 0:01:12]}  Rd8 {[%clk 0:02:01]} 16. Qc1 {[%clk 0:00:55]}  e5 {[%clk 0:01:39]} 17. Nb3 {[%clk 0:00:55]}  Nxb3 {[%clk 0:01:36]} 18. cxb3 {[%clk 0:00:56]}  Be6 {[%clk 0:01:33]} 19. a5 {[%clk 0:00:53]}  Rac8 {[%clk 0:01:30]} 20. Nb6 {[%clk 0:00:43]}  Qxc1 {[%clk 0:01:13]} 21. Raxc1 {[%clk 0:00:42]}  Rxc1 {[%clk 0:01:13]} 22. Rxc1 {[%clk 0:00:41]}  Bh6 {[%clk 0:01:10]} 23. Re1 {[%clk 0:00:35]}  Nxb6 {[%clk 0:01:00]} 24. Bxb6 {[%clk 0:00:33]}  Rd2 {[%clk 0:01:00]} 25. Rxe5 {[%clk 0:00:28]}  Rxb2 {[%clk 0:00:59]} 26. Bc4 {[%clk 0:00:28]}  Rb1+ {[%clk 0:00:32]} 27. Kf2 {[%clk 0:00:27]}  Bf4 {[%clk 0:00:32]} 28. Re4 {[%clk 0:00:12]}  Bxh2 {[%clk 0:00:32]} 29. Bxe6 {[%clk 0:00:12]}  Bg1+ {[%clk 0:00:32]} 30. Kg3 {[%clk 0:00:08]}  Bxb6 {[%clk 0:00:32]} 31. Bd5 {[%clk 0:00:08]}  Bc7+ {[%clk 0:00:17]} 32. Kf2 {[%clk 0:00:08]}  Kf8 {[%clk 0:00:17]} 33. Bxb7 {[%clk 0:00:05]}  Rxb3 {[%clk 0:00:14]} 34. Bxa6 {[%clk 0:00:03]}  Bxa5 {[%clk 0:00:14]} 35. Bc4 {[%clk 0:00:03]}  Bb6+ {[%clk 0:00:13]} 36. Kg3 {[%clk 0:00:03]}  Bc7+ {[%clk 0:00:13]} 37. Kf2 {[%clk 0:00:03]}  Rc3 {[%clk 0:00:13]} 38. Bd5 {[%clk 0:00:03]}  Bb6+ {[%clk 0:00:12]} 39. Kg3 {[%clk 0:00:03]}  Bc7+ {[%clk 0:00:12]} 40. Kf2 {[%clk 0:00:03]}  h5 {[%clk 0:00:12]} 41. Rc4 {[%clk 0:00:03]}  Bb6+ {[%clk 0:00:12]} 42. Kg3 {[%clk 0:00:04]}  Rd3 {[%clk 0:00:12]} 43. Be4 {[%clk 0:00:03]}  Rd2 {[%clk 0:00:12]} 44. Rc6 {[%clk 0:00:03]}  Bd4 {[%clk 0:00:08]} 45. Rc2 {[%clk 0:00:02]}  Be5+ {[%clk 0:00:08]} 46. f4 {[%clk 0:00:02]}  Rd4 {[%clk 0:00:07]} 47. Re2 {[%clk 0:00:01]}  Bd6 {[%clk 0:00:07]} 48. Kf3 {[%clk 0:00:00]}  f5 {[%clk 0:00:07]} 0-1


[Site "https://www.chess.com"]